{"text_format":"1","workbook":"xlsx","n_sheets":2,"sheets":["入力用シート","印刷レイアウト"],"not_rendered":{"charts":0,"images":0,"macros":1,"external_links":0,"defined_names":2,"comments":2,"pivot_tables":0},"unopened":[],"bounds":{"document_bytes":16777216,"sheet_cells":100000,"rows_first":2000,"rows_last":500,"rows_between":2000,"halvings":0,"cell_chars":16384,"cell_head_chars":4096},"cells_cut":0,"cells_raw":0,"read":"whole","date_system":"1900"}

{"sheet":"入力用シート","index":0,"n_rows":46,"n_cols":79,"rows_kept":46,"cut":false,"hidden":false,"merged":[[8,1,8,6],[8,7,8,78],[24,17,25,54],[35,17,35,54],[36,17,36,54],[37,17,37,54],[38,17,38,54],[31,17,31,54],[32,17,32,54],[34,17,34,54],[26,17,26,54],[27,17,27,54],[28,17,28,54],[29,17,29,54],[28,59,28,64],[31,55,31,58],[35,55,35,58],[35,59,35,64],[13,74,16,78],[17,21,23,24],[30,1,30,5],[33,75,33,84],[32,1,32,5],[32,6,32,16],[13,84,16,84],[17,9,23,12],[10,80,10,83],[17,5,23,8],[9,28,11,54],[17,49,23,84],[17,29,23,32],[17,33,23,36],[17,37,23,40],[17,41,17,48],[18,41,18,48],[19,41,19,48],[21,41,23,42],[21,43,23,44],[17,25,23,28],[12,1,16,63],[12,64,12,68],[12,69,12,73],[12,74,12,78],[12,79,12,83],[21,45,23,46],[21,47,23,48],[13,64,16,68],[13,69,16,73],[13,79,16,83],[24,6,25,16],[24,55,24,58],[24,59,25,64],[24,65,25,74],[24,75,25,84],[8,0,44,0],[17,1,23,4],[25,55,25,58],[26,1,26,5],[26,6,26,16],[26,55,26,58],[26,59,26,64],[26,65,26,74],[26,75,26,84],[24,1,25,5],[30,75,30,84],[28,65,28,74],[32,65,32,74],[32,75,32,84],[31,1,31,5],[31,6,31,16],[17,13,23,16],[17,17,23,20],[26,85,42,88],[27,1,27,5],[27,6,27,16],[27,55,27,58],[27,59,27,64],[27,65,27,74],[27,75,27,84],[28,1,28,5],[28,6,28,16],[28,75,28,84],[29,1,29,5],[29,6,29,16],[29,55,29,58],[29,59,29,64],[29,65,29,74],[29,75,29,84],[30,6,30,16],[30,17,30,54],[30,55,30,58],[30,59,30,64],[30,65,30,74],[28,55,28,58],[34,1,34,5],[34,6,34,16],[31,75,31,84],[34,75,34,84],[33,17,33,54],[34,55,34,58],[34,59,34,64],[34,65,34,74],[35,65,35,74],[36,1,36,5],[36,6,36,16],[36,55,36,58],[36,59,36,64],[36,65,36,74],[36,75,36,84],[32,55,32,58],[32,59,32,64],[33,1,33,5],[33,6,33,16],[33,55,33,58],[33,59,33,64],[33,65,33,74],[31,59,31,64],[31,65,31,74],[38,55,38,58],[38,59,38,64],[38,65,38,74],[38,75,38,84],[35,75,35,84],[35,1,35,5],[35,6,35,16],[39,75,39,84],[37,1,37,5],[37,6,37,16],[37,55,37,58],[37,59,37,64],[37,65,37,74],[38,1,38,5],[38,6,38,16],[37,75,37,84],[39,17,39,54],[9,64,9,67],[41,55,41,58],[41,59,41,64],[41,65,41,74],[41,75,41,84],[42,1,42,58],[42,59,42,64],[42,65,42,74],[42,75,42,84],[40,1,40,5],[40,6,40,16],[39,1,39,5],[39,6,39,16],[39,55,39,58],[39,59,39,64],[41,1,41,5],[41,6,41,16],[40,55,40,58],[40,59,40,64],[40,65,40,74],[40,75,40,84],[40,17,40,54],[41,17,41,54],[39,65,39,74]]}
[]
[]
[]
[]
[]
[]
[]
[]
["△","※重要※",null,null,null,null,null,"合計欄は必ず税込金額をご記載いただきますが、小計については税込表記（内税方式）もしくは本体価格と消費税額を分けた表記（外税方式）のどちらも認められます。\nただし、外税方式にて消費税額に端数が発生した場合は、その消費税額の端数を切り捨てて税込金額を算出してください。"]
[null,null,null,null,null,null,null,null,null,null,null,null,null,null,null,null,null,null,null,null,null,null,null,null,null,null,null,null,"入力用シート",null,null,null,null,null,null,null,null,null,null,null,null,null,null,null,null,null,null,null,null,null,null,null,null,null,null,null,null,null,null,null,null,null,null,null,null,null,null,null,"＝入力部分"]
[null,"№は４月～翌年３月迄の一連番号を記入",null,null,null,null,null,null,null,null,null,null,null,null,null,null,null,null,null,null,null,null,null,null,null,null,null,null,null,null,null,null,null,null,null,null,null,null,null,null,null,null,null,null,null,null,null,null,null,null,null,null,null,null,null,null,null,null,null,null,null,null,null,null,null,null,null,null,null,null,null,null,null,null,null,null,null,null,"№"]
[]
[null,"　長 岡 赤 十 字 病 院　　　御 中"]
[]
[]
[]
[]
[null,null,null,null,null,null,null,null,null,null,null,null,null,"年",null,null,null,null,null,null,null,"月",null,null,null,null,null,null,null,"日",null,null,null,null,null,null,null,"納入",null,null,null,"住所"]
[null,null,null,null,null,null,null,null,null,null,null,null,null,null,null,null,null,null,null,null,null,null,null,null,null,null,null,null,null,null,null,null,null,null,null,null,null,null,null,null,null,"会社名"]
[null,null,null,null,null,null,null,null,null,null,null,null,null,null,null,null,null,null,null,null,null,null,null,null,null,null,null,null,null,null,null,null,null,null,null,null,null,null,null,null,null,"代表者氏名"]
[]
[]
[]
[]
[null,"品　目\nコード",null,null,null,null,"製 造 元",null,null,null,null,null,null,null,null,null,null,"品　　名　・　規　　格　・　製品コード",null,null,null,null,null,null,null,null,null,null,null,null,null,null,null,null,null,null,null,null,null,null,null,null,null,null,null,null,null,null,null,null,null,null,null,null,null,"数量",null,null,null,"単　価",null,null,null,null,null,"小　　計",null,null,null,null,null,null,null,null,null,"摘　　要\n（新規は定価）"]
[null,null,null,null,null,null,null,null,null,null,null,null,null,null,null,null,null,null,null,null,null,null,null,null,null,null,null,null,null,null,null,null,null,null,null,null,null,null,null,null,null,null,null,null,null,null,null,null,null,null,null,null,null,null,null,"（本箱袋）"]
[null,null,null,null,null,null,null,null,null,null,null,null,null,null,null,null,null,null,null,null,null,null,null,null,null,null,null,null,null,null,null,null,null,null,null,null,null,null,null,null,null,null,null,null,null,null,null,null,null,null,null,null,null,null,null,null,null,null,null,null,null,null,null,null,null,{"$f":"IF(BH27=\"\",\"\",ROUNDDOWN(LOOKUP(10^17,LEFT(BD27,COLUMN($1:$1))*1)*BH27,0))","v":""}]
[null,null,null,null,null,null,null,null,null,null,null,null,null,null,null,null,null,null,null,null,null,null,null,null,null,null,null,null,null,null,null,null,null,null,null,null,null,null,null,null,null,null,null,null,null,null,null,null,null,null,null,null,null,null,null,null,null,null,null,null,null,null,null,null,null,""]
[null,null,null,null,null,null,null,null,null,null,null,null,null,null,null,null,null,null,null,null,null,null,null,null,null,null,null,null,null,null,null,null,null,null,null,null,null,null,null,null,null,null,null,null,null,null,null,null,null,null,null,null,null,null,null,null,null,null,null,null,null,null,null,null,null,""]
[null,null,null,null,null,null,null,null,null,null,null,null,null,null,null,null,null,null,null,null,null,null,null,null,null,null,null,null,null,null,null,null,null,null,null,null,null,null,null,null,null,null,null,null,null,null,null,null,null,null,null,null,null,null,null,null,null,null,null,null,null,null,null,null,null,""]
[null,null,null,null,null,null,null,null,null,null,null,null,null,null,null,null,null,null,null,null,null,null,null,null,null,null,null,null,null,null,null,null,null,null,null,null,null,null,null,null,null,null,null,null,null,null,null,null,null,null,null,null,null,null,null,null,null,null,null,null,null,null,null,null,null,""]
[null,null,null,null,null,null,null,null,null,null,null,null,null,null,null,null,null,null,null,null,null,null,null,null,null,null,null,null,null,null,null,null,null,null,null,null,null,null,null,null,null,null,null,null,null,null,null,null,null,null,null,null,null,null,null,null,null,null,null,null,null,null,null,null,null,""]
[null,null,null,null,null,null,null,null,null,null,null,null,null,null,null,null,null,null,null,null,null,null,null,null,null,null,null,null,null,null,null,null,null,null,null,null,null,null,null,null,null,null,null,null,null,null,null,null,null,null,null,null,null,null,null,null,null,null,null,null,null,null,null,null,null,""]
[null,null,null,null,null,null,null,null,null,null,null,null,null,null,null,null,null,null,null,null,null,null,null,null,null,null,null,null,null,null,null,null,null,null,null,null,null,null,null,null,null,null,null,null,null,null,null,null,null,null,null,null,null,null,null,null,null,null,null,null,null,null,null,null,null,""]
[null,null,null,null,null,null,null,null,null,null,null,null,null,null,null,null,null,null,null,null,null,null,null,null,null,null,null,null,null,null,null,null,null,null,null,null,null,null,null,null,null,null,null,null,null,null,null,null,null,null,null,null,null,null,null,null,null,null,null,null,null,null,null,null,null,""]
[null,null,null,null,null,null,null,null,null,null,null,null,null,null,null,null,null,null,null,null,null,null,null,null,null,null,null,null,null,null,null,null,null,null,null,null,null,null,null,null,null,null,null,null,null,null,null,null,null,null,null,null,null,null,null,null,null,null,null,null,null,null,null,null,null,""]
[null,null,null,null,null,null,null,null,null,null,null,null,null,null,null,null,null,null,null,null,null,null,null,null,null,null,null,null,null,null,null,null,null,null,null,null,null,null,null,null,null,null,null,null,null,null,null,null,null,null,null,null,null,null,null,null,null,null,null,null,null,null,null,null,null,""]
[null,null,null,null,null,null,null,null,null,null,null,null,null,null,null,null,null,null,null,null,null,null,null,null,null,null,null,null,null,null,null,null,null,null,null,null,null,null,null,null,null,null,null,null,null,null,null,null,null,null,null,null,null,null,null,null,null,null,null,null,null,null,null,null,null,""]
[null,null,null,null,null,null,null,null,null,null,null,null,null,null,null,null,null,null,null,null,null,null,null,null,null,null,null,null,null,null,null,null,null,null,null,null,null,null,null,null,null,null,null,null,null,null,null,null,null,null,null,null,null,null,null,null,null,null,null,null,null,null,null,null,null,""]
[null,null,null,null,null,null,null,null,null,null,null,null,null,null,null,null,null,null,null,null,null,null,null,null,null,null,null,null,null,null,null,null,null,null,null,null,null,null,null,null,null,null,null,null,null,null,null,null,null,null,null,null,null,null,null,null,null,null,null,null,null,null,null,null,null,""]
[null,null,null,null,null,null,null,null,null,null,null,null,null,null,null,null,null,null,null,null,null,null,null,null,null,null,null,null,null,null,null,null,null,null,null,null,null,null,null,null,null,null,null,null,null,null,null,null,null,null,null,null,null,null,null,null,null,null,null,null,null,null,null,null,null,""]
[null,null,null,null,null,null,null,null,null,null,null,null,null,null,null,null,null,null,null,null,null,null,null,null,null,null,null,null,null,null,null,null,null,null,null,null,null,null,null,null,null,null,null,null,null,null,null,null,null,null,null,null,null,null,null,null,null,null,null,null,null,null,null,null,null,""]
[null,"「＊」は軽減税率対象品",null,null,null,null,null,null,null,null,null,null,null,null,null,null,null,null,null,null,null,null,null,null,null,null,null,null,null,null,null,null,null,null,null,null,null,null,null,null,null,null,null,null,null,null,null,null,null,null,null,null,null,null,null,null,null,null,null,"合　計",null,null,null,null,null,{"$f":"IF(SUM(BN27:BW42)=0,\"\",SUM(BN27:BW42))","v":""}]
[]
[null,"訂正の場合は、代表者氏名欄に押してある代表者の印を使用してください。"]
[null,"軽減税率の商品については、品名の前に＊印をつけてください。"]

{"sheet":"印刷レイアウト","index":1,"n_rows":110,"n_cols":88,"rows_kept":110,"cut":false,"hidden":false,"merged":[[84,1,90,4],[91,1,92,5],[91,6,92,16],[84,41,84,48],[84,49,90,84],[85,41,85,48],[77,78,77,79],[72,1,72,58],[72,59,72,64],[72,65,72,74],[72,75,72,84],[91,55,91,58],[91,59,92,64],[91,65,92,74],[91,75,92,84],[92,55,92,58],[79,60,83,84],[84,9,90,12],[84,5,90,8],[96,17,96,54],[71,17,71,54],[88,45,90,46],[88,47,90,48],[84,13,90,16],[84,17,90,20],[84,21,90,24],[84,25,90,28],[84,29,90,32],[91,17,92,54],[84,33,90,36],[84,37,90,40],[86,41,86,48],[88,41,90,42],[88,43,90,44],[58,1,58,5],[64,1,64,5],[64,6,64,16],[64,55,64,58],[64,59,64,64],[67,55,67,58],[67,59,67,64],[68,1,68,5],[68,6,68,16],[68,55,68,58],[68,59,68,64],[58,6,58,16],[66,1,66,5],[66,6,66,16],[65,6,65,16],[65,17,65,54],[61,17,61,54],[62,17,62,54],[47,1,53,4],[47,13,53,16],[47,17,53,20],[47,21,53,24],[47,25,53,28],[20,17,20,54],[47,29,53,32],[47,33,53,36],[47,37,53,40],[21,17,21,54],[32,1,32,5],[30,6,30,16],[30,17,30,54],[31,17,31,54],[32,17,32,54],[29,1,29,5],[34,1,34,58],[33,6,33,16],[33,1,33,5],[22,55,22,58],[33,17,33,54],[24,17,24,54],[25,17,25,54],[26,17,26,54],[0,0,36,0],[23,55,23,58],[24,55,24,58],[19,55,19,58],[20,55,20,58],[21,55,21,58],[22,17,22,54],[23,17,23,54],[18,17,18,54],[19,17,19,54],[29,55,29,58],[28,17,28,54],[29,17,29,54],[9,1,15,4],[9,13,15,16],[9,17,15,20],[33,55,33,58],[30,55,30,58],[31,55,31,58],[32,55,32,58],[4,1,8,63],[27,6,27,16],[28,6,28,16],[9,37,15,40],[33,75,33,84],[29,75,29,84],[30,75,30,84],[31,75,31,84],[32,75,32,84],[28,75,28,84],[19,59,19,64],[20,59,20,64],[20,65,20,74],[33,59,33,64],[30,59,30,64],[31,59,31,64],[32,59,32,64],[25,59,25,64],[27,59,27,64],[21,59,21,64],[29,65,29,74],[33,65,33,74],[30,65,30,74],[31,65,31,74],[32,65,32,74],[21,65,21,74],[22,65,22,74],[23,65,23,74],[4,74,4,78],[5,74,8,78],[4,79,4,83],[5,79,8,83],[5,84,8,84],[18,65,18,74],[19,65,19,74],[20,75,20,84],[5,69,8,73],[4,64,4,68],[5,64,8,68],[4,69,4,73],[18,75,18,84],[19,75,19,84],[18,59,18,64],[16,17,17,54],[19,1,19,5],[20,1,20,5],[21,1,21,5],[22,1,22,5],[23,1,23,5],[24,1,24,5],[25,1,25,5],[24,6,24,16],[25,6,25,16],[31,1,31,5],[24,75,24,84],[25,75,25,84],[27,75,27,84],[25,55,25,58],[27,55,27,58],[28,55,28,58],[27,65,27,74],[28,65,28,74],[28,59,28,64],[24,65,24,74],[25,65,25,74],[29,59,29,64],[27,17,27,54],[9,41,9,48],[10,41,10,48],[13,43,15,44],[13,45,15,46],[13,47,15,48],[16,55,16,58],[21,6,21,16],[22,6,22,16],[23,6,23,16],[9,21,15,24],[9,25,15,28],[9,29,15,32],[9,33,15,36],[20,6,20,16],[11,41,11,48],[13,41,15,42],[9,49,15,84],[16,6,17,16],[16,75,17,84],[16,65,17,74],[16,59,17,64],[21,75,21,84],[22,75,22,84],[23,75,23,84],[34,75,34,84],[31,6,31,16],[32,6,32,16],[34,59,34,64],[34,65,34,74],[17,55,17,58],[18,1,18,5],[18,6,18,16],[18,55,18,58],[19,6,19,16],[27,1,27,5],[26,1,26,5],[26,6,26,16],[26,55,26,58],[26,59,26,64],[26,65,26,74],[26,75,26,84],[22,59,22,64],[23,59,23,64],[24,59,24,64],[16,1,17,5],[28,1,28,5],[29,6,29,16],[30,1,30,5],[58,65,58,74],[58,75,58,84],[58,17,58,54],[49,41,49,48],[51,41,53,42],[51,43,53,44],[51,45,53,46],[51,47,53,48],[47,41,47,48],[47,49,53,84],[48,41,48,48],[55,55,55,58],[54,17,55,54],[58,55,58,58],[58,59,58,64],[54,1,55,5],[57,1,57,5],[57,6,57,16],[57,55,57,58],[57,59,57,64],[57,65,57,74],[57,75,57,84],[56,1,56,5],[56,6,56,16],[56,17,56,54],[57,17,57,54],[54,6,55,16],[54,55,54,58],[54,59,55,64],[54,65,55,74],[54,75,55,84],[56,55,56,58],[56,59,56,64],[56,65,56,74],[56,75,56,84],[59,75,59,84],[59,17,59,54],[60,1,60,5],[60,6,60,16],[60,17,60,54],[60,55,60,58],[60,59,60,64],[60,65,60,74],[60,75,60,84],[59,1,59,5],[59,6,59,16],[59,55,59,58],[59,59,59,64],[59,65,59,74],[62,75,62,84],[61,1,61,5],[61,6,61,16],[61,55,61,58],[61,59,61,64],[61,65,61,74],[61,75,61,84],[63,55,63,58],[63,59,63,64],[63,65,63,74],[63,75,63,84],[62,1,62,5],[62,6,62,16],[62,55,62,58],[62,59,62,64],[62,65,62,74],[63,17,63,54],[63,1,63,5],[63,6,63,16],[69,65,69,74],[69,75,69,84],[69,17,69,54],[67,65,67,74],[67,75,67,84],[64,65,64,74],[64,75,64,84],[68,65,68,74],[68,75,68,84],[66,75,66,84],[65,55,65,58],[65,59,65,64],[65,65,65,74],[65,75,65,84],[64,17,64,54],[66,65,66,74],[66,17,66,54],[67,17,67,54],[68,17,68,54],[66,55,66,58],[66,59,66,64],[95,65,95,74],[95,75,95,84],[94,1,94,5],[94,6,94,16],[94,55,94,58],[94,59,94,64],[94,65,94,74],[93,17,93,54],[94,17,94,54],[95,17,95,54],[98,1,98,5],[98,6,98,16],[98,55,98,58],[98,59,98,64],[98,65,98,74],[98,75,98,84],[97,1,97,5],[97,6,97,16],[97,55,97,58],[97,59,97,64],[97,65,97,74],[97,75,97,84],[97,17,97,54],[98,17,98,54],[100,1,100,5],[100,6,100,16],[100,55,100,58],[100,59,100,64],[100,65,100,74],[100,75,100,84],[99,1,99,5],[99,6,99,16],[99,55,99,58],[99,59,99,64],[99,65,99,74],[99,75,99,84],[100,17,100,54],[99,17,99,54],[102,1,102,5],[102,6,102,16],[102,55,102,58],[102,59,102,64],[102,65,102,74],[102,75,102,84],[101,1,101,5],[101,6,101,16],[101,55,101,58],[101,59,101,64],[101,65,101,74],[101,75,101,84],[101,17,101,54],[102,17,102,54],[104,1,104,5],[104,6,104,16],[104,55,104,58],[104,59,104,64],[104,65,104,74],[104,75,104,84],[103,1,103,5],[103,6,103,16],[103,55,103,58],[103,59,103,64],[103,65,103,74],[103,75,103,84],[104,17,104,54],[103,17,103,54],[105,1,105,5],[105,6,105,16],[105,55,105,58],[105,59,105,64],[105,65,105,74],[105,75,105,84],[105,17,105,54],[106,1,106,5],[106,6,106,16],[106,55,106,58],[106,59,106,64],[106,65,106,74],[106,75,106,84],[108,1,108,5],[108,6,108,16],[107,55,107,58],[107,59,107,64],[107,65,107,74],[107,75,107,84],[106,17,106,54],[107,17,107,54],[108,17,108,54],[108,55,108,58],[108,59,108,64],[108,65,108,74],[108,75,108,84],[109,1,109,58],[109,59,109,64],[109,65,109,74],[109,75,109,84],[107,1,107,5],[107,6,107,16],[18,85,34,88],[56,85,72,88],[93,85,96,86],[93,87,96,88],[77,80,77,83],[42,80,42,84],[42,75,42,79],[42,70,42,74],[42,65,42,69],[42,60,42,64],[43,60,46,64],[43,65,46,69],[43,70,46,74],[43,75,46,79],[43,80,46,84],[70,55,70,58],[70,59,70,64],[70,65,70,74],[38,0,74,0],[2,78,2,79],[40,78,40,79],[96,1,96,5],[96,6,96,16],[96,55,96,58],[96,59,96,64],[96,65,96,74],[96,75,96,84],[95,1,95,5],[95,6,95,16],[94,75,94,84],[93,1,93,5],[93,6,93,16],[93,55,93,58],[93,59,93,64],[93,65,93,74],[93,75,93,84],[95,55,95,58],[95,59,95,64],[2,80,2,83],[39,28,40,54],[76,28,77,54],[40,80,40,83],[70,75,70,84],[70,17,70,54],[71,55,71,58],[71,59,71,64],[71,65,71,74],[71,75,71,84],[79,1,83,59],[42,1,46,59],[0,28,3,54],[9,9,15,12],[47,9,53,12],[9,5,15,8],[47,5,53,8],[70,1,70,5],[70,6,70,16],[71,1,71,5],[71,6,71,16],[69,1,69,5],[69,6,69,16],[69,55,69,58],[69,59,69,64],[67,1,67,5],[67,6,67,16],[65,1,65,5]]}
["△",null,null,null,null,null,null,null,null,null,null,null,null,null,null,null,null,null,null,null,null,null,null,null,null,null,null,null,"納　品　書（事業者控）"]
[]
[null,"№は４月～翌年３月迄の一連番号を記入",null,null,null,null,null,null,null,null,null,null,null,null,null,null,null,null,null,null,null,null,null,null,null,null,null,null,null,null,null,null,null,null,null,null,null,null,null,null,null,null,null,null,null,null,null,null,null,null,null,null,null,null,null,null,null,null,null,null,null,null,null,null,null,null,null,null,null,null,null,null,null,null,null,null,null,null,"№",null,{"$f":"IF(入力用シート!CC11=\"\",\"\",入力用シート!CC11)","v":""}]
[]
[null,"　長 岡 赤 十 字 病 院　　　御 中"]
[]
[]
[]
[]
[null,{"$f":"IF(入力用シート!B18=\"\",\"\",入力用シート!B18)","v":""},null,null,null,{"$f":"IF(入力用シート!F18=\"\",\"\",入力用シート!F18)","v":""},null,null,null,{"$f":"IF(入力用シート!J18=\"\",\"\",入力用シート!J18)","v":""},null,null,null,"年",null,null,null,{"$f":"IF(入力用シート!R18=\"\",\"\",入力用シート!R18)","v":""},null,null,null,"月",null,null,null,{"$f":"IF(入力用シート!Z18=\"\",\"\",入力用シート!Z18)","v":""},null,null,null,"日",null,null,null,null,null,null,null,"納入",null,null,null,"住所",null,null,null,null,null,null,null,{"$f":"IF(入力用シート!AX18=\"\",\"\",入力用シート!AX18)","v":""},null,null,null,null,{"$f":"IF(入力用シート!BC18=\"\",\"\",入力用シート!BC18)","v":""},null,null,null,null,{"$f":"IF(入力用シート!BH18=\"\",\"\",入力用シート!BH18)","v":""},null,null,null,null,{"$f":"IF(入力用シート!BM18=\"\",\"\",入力用シート!BM18)","v":""},null,null,null,null,{"$f":"IF(入力用シート!BR18=\"\",\"\",入力用シート!BR18)","v":""},null,null,null,null,{"$f":"IF(入力用シート!BW18=\"\",\"\",入力用シート!BW18)","v":""},null,null,null,null,{"$f":"IF(入力用シート!CB18=\"\",\"\",入力用シート!CB18)","v":""},null,null,null,null,{"$f":"IF(入力用シート!CG18=\"\",\"\",入力用シート!CG18)","v":""}]
[null,null,null,null,null,null,null,null,null,null,null,null,null,null,null,null,null,null,null,null,null,null,null,null,null,null,null,null,null,null,null,null,null,null,null,null,null,null,null,null,null,"会社名",null,null,null,null,null,null,null,{"$f":"IF(入力用シート!AX19=\"\",\"\",入力用シート!AX19)","v":""},null,null,null,null,{"$f":"IF(入力用シート!BC19=\"\",\"\",入力用シート!BC19)","v":""},null,null,null,null,{"$f":"IF(入力用シート!BH19=\"\",\"\",入力用シート!BH19)","v":""},null,null,null,null,{"$f":"IF(入力用シート!BM19=\"\",\"\",入力用シート!BM19)","v":""},null,null,null,null,{"$f":"IF(入力用シート!BR19=\"\",\"\",入力用シート!BR19)","v":""},null,null,null,null,{"$f":"IF(入力用シート!BW19=\"\",\"\",入力用シート!BW19)","v":""},null,null,null,null,{"$f":"IF(入力用シート!CB19=\"\",\"\",入力用シート!CB19)","v":""},null,null,null,null,{"$f":"IF(入力用シート!CG19=\"\",\"\",入力用シート!CG19)","v":""}]
[null,null,null,null,null,null,null,null,null,null,null,null,null,null,null,null,null,null,null,null,null,null,null,null,null,null,null,null,null,null,null,null,null,null,null,null,null,null,null,null,null,"代表者氏名",null,null,null,null,null,null,null,{"$f":"IF(入力用シート!AX20=\"\",\"\",入力用シート!AX20)","v":""},null,null,null,null,{"$f":"IF(入力用シート!BC20=\"\",\"\",入力用シート!BC20)","v":""},null,null,null,null,{"$f":"IF(入力用シート!BH20=\"\",\"\",入力用シート!BH20)","v":""},null,null,null,null,{"$f":"IF(入力用シート!BM20=\"\",\"\",入力用シート!BM20)","v":""},null,null,null,null,{"$f":"IF(入力用シート!BR20=\"\",\"\",入力用シート!BR20)","v":""},null,null,null,null,{"$f":"IF(入力用シート!BW20=\"\",\"\",入力用シート!BW20)","v":""},null,null,null,null,{"$f":"IF(入力用シート!CB20=\"\",\"\",入力用シート!CB20)","v":""},null,null,null,null,{"$f":"IF(入力用シート!CG20=\"\",\"\",入力用シート!CG20)","v":""}]
[null,null,null,null,null,null,null,null,null,null,null,null,null,null,null,null,null,null,null,null,null,null,null,null,null,null,null,null,null,null,null,null,null,null,null,null,null,null,null,null,null,null,null,null,null,null,null,null,null,{"$f":"IF(入力用シート!AX21=\"\",\"\",入力用シート!AX21)","v":""},null,null,null,null,{"$f":"IF(入力用シート!BC21=\"\",\"\",入力用シート!BC21)","v":""},null,null,null,null,{"$f":"IF(入力用シート!BH21=\"\",\"\",入力用シート!BH21)","v":""},null,null,null,null,{"$f":"IF(入力用シート!BM21=\"\",\"\",入力用シート!BM21)","v":""},null,null,null,null,{"$f":"IF(入力用シート!BR21=\"\",\"\",入力用シート!BR21)","v":""},null,null,null,null,{"$f":"IF(入力用シート!BW21=\"\",\"\",入力用シート!BW21)","v":""},null,null,null,null,{"$f":"IF(入力用シート!CB21=\"\",\"\",入力用シート!CB21)","v":""},null,null,null,null,{"$f":"IF(入力用シート!CG21=\"\",\"\",入力用シート!CG21)","v":""}]
[null,null,null,null,null,null,null,null,null,null,null,null,null,null,null,null,null,null,null,null,null,null,null,null,null,null,null,null,null,null,null,null,null,null,null,null,null,null,null,null,null,{"$f":"IF(入力用シート!AP22=\"\",\"\",入力用シート!AP22)","v":""},null,{"$f":"IF(入力用シート!AR22=\"\",\"\",入力用シート!AR22)","v":""},null,{"$f":"IF(入力用シート!AT22=\"\",\"\",入力用シート!AT22)","v":""},null,{"$f":"IF(入力用シート!AV22=\"\",\"\",入力用シート!AV22)","v":""},null,{"$f":"IF(入力用シート!AX22=\"\",\"\",入力用シート!AX22)","v":""},null,null,null,null,{"$f":"IF(入力用シート!BC22=\"\",\"\",入力用シート!BC22)","v":""},null,null,null,null,{"$f":"IF(入力用シート!BH22=\"\",\"\",入力用シート!BH22)","v":""},null,null,null,null,{"$f":"IF(入力用シート!BM22=\"\",\"\",入力用シート!BM22)","v":""},null,null,null,null,{"$f":"IF(入力用シート!BR22=\"\",\"\",入力用シート!BR22)","v":""},null,null,null,null,{"$f":"IF(入力用シート!BW22=\"\",\"\",入力用シート!BW22)","v":""},null,null,null,null,{"$f":"IF(入力用シート!CB22=\"\",\"\",入力用シート!CB22)","v":""},null,null,null,null,{"$f":"IF(入力用シート!CG22=\"\",\"\",入力用シート!CG22)","v":""}]
[null,null,null,null,null,null,null,null,null,null,null,null,null,null,null,null,null,null,null,null,null,null,null,null,null,null,null,null,null,null,null,null,null,null,null,null,null,null,null,null,null,null,null,null,null,null,null,null,null,{"$f":"IF(入力用シート!AX23=\"\",\"\",入力用シート!AX23)","v":""},null,null,null,null,{"$f":"IF(入力用シート!BC23=\"\",\"\",入力用シート!BC23)","v":""},null,null,null,null,{"$f":"IF(入力用シート!BH23=\"\",\"\",入力用シート!BH23)","v":""},null,null,null,null,{"$f":"IF(入力用シート!BM23=\"\",\"\",入力用シート!BM23)","v":""},null,null,null,null,{"$f":"IF(入力用シート!BR23=\"\",\"\",入力用シート!BR23)","v":""},null,null,null,null,{"$f":"IF(入力用シート!BW23=\"\",\"\",入力用シート!BW23)","v":""},null,null,null,null,{"$f":"IF(入力用シート!CB23=\"\",\"\",入力用シート!CB23)","v":""},null,null,null,null,{"$f":"IF(入力用シート!CG23=\"\",\"\",入力用シート!CG23)","v":""}]
[null,null,null,null,null,null,null,null,null,null,null,null,null,null,null,null,null,null,null,null,null,null,null,null,null,null,null,null,null,null,null,null,null,null,null,null,null,null,null,null,null,null,null,null,null,null,null,null,null,{"$f":"IF(入力用シート!AX24=\"\",\"\",入力用シート!AX24)","v":""},null,null,null,null,{"$f":"IF(入力用シート!BC24=\"\",\"\",入力用シート!BC24)","v":""},null,null,null,null,{"$f":"IF(入力用シート!BH24=\"\",\"\",入力用シート!BH24)","v":""},null,null,null,null,{"$f":"IF(入力用シート!BM24=\"\",\"\",入力用シート!BM24)","v":""},null,null,null,null,{"$f":"IF(入力用シート!BR24=\"\",\"\",入力用シート!BR24)","v":""},null,null,null,null,{"$f":"IF(入力用シート!BW24=\"\",\"\",入力用シート!BW24)","v":""},null,null,null,null,{"$f":"IF(入力用シート!CB24=\"\",\"\",入力用シート!CB24)","v":""},null,null,null,null,{"$f":"IF(入力用シート!CG24=\"\",\"\",入力用シート!CG24)","v":""}]
[null,"品　目\nコード",null,null,null,null,"製 造 元",null,null,null,null,null,null,null,null,null,null,"品　　名　・　規　　格　・　製品コード",null,null,null,null,null,null,null,null,null,null,null,null,null,null,null,null,null,null,null,null,null,null,null,null,null,null,null,null,null,null,null,null,null,null,null,null,null,"数量",null,null,null,"単　価",null,null,null,null,null,"小　　計",null,null,null,null,null,null,null,null,null,"摘　　要\n（新規は定価）"]
[null,null,null,null,null,null,null,null,null,null,null,null,null,null,null,null,null,null,null,null,null,null,null,null,null,null,null,null,null,null,null,null,null,null,null,null,null,null,null,null,null,null,null,null,null,null,null,null,null,null,null,null,null,null,null,"（本箱袋）"]
[null,{"$f":"IF(入力用シート!B27=\"\",\"\",入力用シート!B27)","v":""},null,null,null,null,{"$f":"IF(入力用シート!G27=\"\",\"\",入力用シート!G27)","v":""},null,null,null,null,null,null,null,null,null,null,{"$f":"IF(入力用シート!R27=\"\",\"\",入力用シート!R27)","v":""},null,null,null,null,null,null,null,null,null,null,null,null,null,null,null,null,null,null,null,null,null,null,null,null,null,null,null,null,null,null,null,null,null,null,null,null,null,{"$f":"IF(入力用シート!BD27=\"\",\"\",入力用シート!BD27)","v":""},null,null,null,{"$f":"IF(入力用シート!BH27=\"\",\"\",入力用シート!BH27)","v":""},null,null,null,null,null,{"$f":"IF(入力用シート!BN27=\"\",\"\",入力用シート!BN27)","v":""},null,null,null,null,null,null,null,null,null,{"$f":"IF(入力用シート!BX27=\"\",\"\",入力用シート!BX27)","v":""}]
[null,{"$f":"IF(入力用シート!B28=\"\",\"\",入力用シート!B28)","v":""},null,null,null,null,{"$f":"IF(入力用シート!G28=\"\",\"\",入力用シート!G28)","v":""},null,null,null,null,null,null,null,null,null,null,{"$f":"IF(入力用シート!R28=\"\",\"\",入力用シート!R28)","v":""},null,null,null,null,null,null,null,null,null,null,null,null,null,null,null,null,null,null,null,null,null,null,null,null,null,null,null,null,null,null,null,null,null,null,null,null,null,{"$f":"IF(入力用シート!BD28=\"\",\"\",入力用シート!BD28)","v":""},null,null,null,{"$f":"IF(入力用シート!BH28=\"\",\"\",入力用シート!BH28)","v":""},null,null,null,null,null,{"$f":"IF(入力用シート!BN28=\"\",\"\",入力用シート!BN28)","v":""},null,null,null,null,null,null,null,null,null,{"$f":"IF(入力用シート!BX28=\"\",\"\",入力用シート!BX28)","v":""}]
[null,{"$f":"IF(入力用シート!B29=\"\",\"\",入力用シート!B29)","v":""},null,null,null,null,{"$f":"IF(入力用シート!G29=\"\",\"\",入力用シート!G29)","v":""},null,null,null,null,null,null,null,null,null,null,{"$f":"IF(入力用シート!R29=\"\",\"\",入力用シート!R29)","v":""},null,null,null,null,null,null,null,null,null,null,null,null,null,null,null,null,null,null,null,null,null,null,null,null,null,null,null,null,null,null,null,null,null,null,null,null,null,{"$f":"IF(入力用シート!BD29=\"\",\"\",入力用シート!BD29)","v":""},null,null,null,{"$f":"IF(入力用シート!BH29=\"\",\"\",入力用シート!BH29)","v":""},null,null,null,null,null,{"$f":"IF(入力用シート!BN29=\"\",\"\",入力用シート!BN29)","v":""},null,null,null,null,null,null,null,null,null,{"$f":"IF(入力用シート!BX29=\"\",\"\",入力用シート!BX29)","v":""}]
[null,{"$f":"IF(入力用シート!B30=\"\",\"\",入力用シート!B30)","v":""},null,null,null,null,{"$f":"IF(入力用シート!G30=\"\",\"\",入力用シート!G30)","v":""},null,null,null,null,null,null,null,null,null,null,{"$f":"IF(入力用シート!R30=\"\",\"\",入力用シート!R30)","v":""},null,null,null,null,null,null,null,null,null,null,null,null,null,null,null,null,null,null,null,null,null,null,null,null,null,null,null,null,null,null,null,null,null,null,null,null,null,{"$f":"IF(入力用シート!BD30=\"\",\"\",入力用シート!BD30)","v":""},null,null,null,{"$f":"IF(入力用シート!BH30=\"\",\"\",入力用シート!BH30)","v":""},null,null,null,null,null,{"$f":"IF(入力用シート!BN30=\"\",\"\",入力用シート!BN30)","v":""},null,null,null,null,null,null,null,null,null,{"$f":"IF(入力用シート!BX30=\"\",\"\",入力用シート!BX30)","v":""}]
[null,{"$f":"IF(入力用シート!B31=\"\",\"\",入力用シート!B31)","v":""},null,null,null,null,{"$f":"IF(入力用シート!G31=\"\",\"\",入力用シート!G31)","v":""},null,null,null,null,null,null,null,null,null,null,{"$f":"IF(入力用シート!R31=\"\",\"\",入力用シート!R31)","v":""},null,null,null,null,null,null,null,null,null,null,null,null,null,null,null,null,null,null,null,null,null,null,null,null,null,null,null,null,null,null,null,null,null,null,null,null,null,{"$f":"IF(入力用シート!BD31=\"\",\"\",入力用シート!BD31)","v":""},null,null,null,{"$f":"IF(入力用シート!BH31=\"\",\"\",入力用シート!BH31)","v":""},null,null,null,null,null,{"$f":"IF(入力用シート!BN31=\"\",\"\",入力用シート!BN31)","v":""},null,null,null,null,null,null,null,null,null,{"$f":"IF(入力用シート!BX31=\"\",\"\",入力用シート!BX31)","v":""}]
[null,{"$f":"IF(入力用シート!B32=\"\",\"\",入力用シート!B32)","v":""},null,null,null,null,{"$f":"IF(入力用シート!G32=\"\",\"\",入力用シート!G32)","v":""},null,null,null,null,null,null,null,null,null,null,{"$f":"IF(入力用シート!R32=\"\",\"\",入力用シート!R32)","v":""},null,null,null,null,null,null,null,null,null,null,null,null,null,null,null,null,null,null,null,null,null,null,null,null,null,null,null,null,null,null,null,null,null,null,null,null,null,{"$f":"IF(入力用シート!BD32=\"\",\"\",入力用シート!BD32)","v":""},null,null,null,{"$f":"IF(入力用シート!BH32=\"\",\"\",入力用シート!BH32)","v":""},null,null,null,null,null,{"$f":"IF(入力用シート!BN32=\"\",\"\",入力用シート!BN32)","v":""},null,null,null,null,null,null,null,null,null,{"$f":"IF(入力用シート!BX32=\"\",\"\",入力用シート!BX32)","v":""}]
[null,{"$f":"IF(入力用シート!B33=\"\",\"\",入力用シート!B33)","v":""},null,null,null,null,{"$f":"IF(入力用シート!G33=\"\",\"\",入力用シート!G33)","v":""},null,null,null,null,null,null,null,null,null,null,{"$f":"IF(入力用シート!R33=\"\",\"\",入力用シート!R33)","v":""},null,null,null,null,null,null,null,null,null,null,null,null,null,null,null,null,null,null,null,null,null,null,null,null,null,null,null,null,null,null,null,null,null,null,null,null,null,{"$f":"IF(入力用シート!BD33=\"\",\"\",入力用シート!BD33)","v":""},null,null,null,{"$f":"IF(入力用シート!BH33=\"\",\"\",入力用シート!BH33)","v":""},null,null,null,null,null,{"$f":"IF(入力用シート!BN33=\"\",\"\",入力用シート!BN33)","v":""},null,null,null,null,null,null,null,null,null,{"$f":"IF(入力用シート!BX33=\"\",\"\",入力用シート!BX33)","v":""}]
[null,{"$f":"IF(入力用シート!B34=\"\",\"\",入力用シート!B34)","v":""},null,null,null,null,{"$f":"IF(入力用シート!G34=\"\",\"\",入力用シート!G34)","v":""},null,null,null,null,null,null,null,null,null,null,{"$f":"IF(入力用シート!R34=\"\",\"\",入力用シート!R34)","v":""},null,null,null,null,null,null,null,null,null,null,null,null,null,null,null,null,null,null,null,null,null,null,null,null,null,null,null,null,null,null,null,null,null,null,null,null,null,{"$f":"IF(入力用シート!BD34=\"\",\"\",入力用シート!BD34)","v":""},null,null,null,{"$f":"IF(入力用シート!BH34=\"\",\"\",入力用シート!BH34)","v":""},null,null,null,null,null,{"$f":"IF(入力用シート!BN34=\"\",\"\",入力用シート!BN34)","v":""},null,null,null,null,null,null,null,null,null,{"$f":"IF(入力用シート!BX34=\"\",\"\",入力用シート!BX34)","v":""}]
[null,{"$f":"IF(入力用シート!B35=\"\",\"\",入力用シート!B35)","v":""},null,null,null,null,{"$f":"IF(入力用シート!G35=\"\",\"\",入力用シート!G35)","v":""},null,null,null,null,null,null,null,null,null,null,{"$f":"IF(入力用シート!R35=\"\",\"\",入力用シート!R35)","v":""},null,null,null,null,null,null,null,null,null,null,null,null,null,null,null,null,null,null,null,null,null,null,null,null,null,null,null,null,null,null,null,null,null,null,null,null,null,{"$f":"IF(入力用シート!BD35=\"\",\"\",入力用シート!BD35)","v":""},null,null,null,{"$f":"IF(入力用シート!BH35=\"\",\"\",入力用シート!BH35)","v":""},null,null,null,null,null,{"$f":"IF(入力用シート!BN35=\"\",\"\",入力用シート!BN35)","v":""},null,null,null,null,null,null,null,null,null,{"$f":"IF(入力用シート!BX35=\"\",\"\",入力用シート!BX35)","v":""}]
[null,{"$f":"IF(入力用シート!B36=\"\",\"\",入力用シート!B36)","v":""},null,null,null,null,{"$f":"IF(入力用シート!G36=\"\",\"\",入力用シート!G36)","v":""},null,null,null,null,null,null,null,null,null,null,{"$f":"IF(入力用シート!R36=\"\",\"\",入力用シート!R36)","v":""},null,null,null,null,null,null,null,null,null,null,null,null,null,null,null,null,null,null,null,null,null,null,null,null,null,null,null,null,null,null,null,null,null,null,null,null,null,{"$f":"IF(入力用シート!BD36=\"\",\"\",入力用シート!BD36)","v":""},null,null,null,{"$f":"IF(入力用シート!BH36=\"\",\"\",入力用シート!BH36)","v":""},null,null,null,null,null,{"$f":"IF(入力用シート!BN36=\"\",\"\",入力用シート!BN36)","v":""},null,null,null,null,null,null,null,null,null,{"$f":"IF(入力用シート!BX36=\"\",\"\",入力用シート!BX36)","v":""}]
[null,{"$f":"IF(入力用シート!B37=\"\",\"\",入力用シート!B37)","v":""},null,null,null,null,{"$f":"IF(入力用シート!G37=\"\",\"\",入力用シート!G37)","v":""},null,null,null,null,null,null,null,null,null,null,{"$f":"IF(入力用シート!R37=\"\",\"\",入力用シート!R37)","v":""},null,null,null,null,null,null,null,null,null,null,null,null,null,null,null,null,null,null,null,null,null,null,null,null,null,null,null,null,null,null,null,null,null,null,null,null,null,{"$f":"IF(入力用シート!BD37=\"\",\"\",入力用シート!BD37)","v":""},null,null,null,{"$f":"IF(入力用シート!BH37=\"\",\"\",入力用シート!BH37)","v":""},null,null,null,null,null,{"$f":"IF(入力用シート!BN37=\"\",\"\",入力用シート!BN37)","v":""},null,null,null,null,null,null,null,null,null,{"$f":"IF(入力用シート!BX37=\"\",\"\",入力用シート!BX37)","v":""}]
[null,{"$f":"IF(入力用シート!B38=\"\",\"\",入力用シート!B38)","v":""},null,null,null,null,{"$f":"IF(入力用シート!G38=\"\",\"\",入力用シート!G38)","v":""},null,null,null,null,null,null,null,null,null,null,{"$f":"IF(入力用シート!R38=\"\",\"\",入力用シート!R38)","v":""},null,null,null,null,null,null,null,null,null,null,null,null,null,null,null,null,null,null,null,null,null,null,null,null,null,null,null,null,null,null,null,null,null,null,null,null,null,{"$f":"IF(入力用シート!BD38=\"\",\"\",入力用シート!BD38)","v":""},null,null,null,{"$f":"IF(入力用シート!BH38=\"\",\"\",入力用シート!BH38)","v":""},null,null,null,null,null,{"$f":"IF(入力用シート!BN38=\"\",\"\",入力用シート!BN38)","v":""},null,null,null,null,null,null,null,null,null,{"$f":"IF(入力用シート!BX38=\"\",\"\",入力用シート!BX38)","v":""}]
[null,{"$f":"IF(入力用シート!B39=\"\",\"\",入力用シート!B39)","v":""},null,null,null,null,{"$f":"IF(入力用シート!G39=\"\",\"\",入力用シート!G39)","v":""},null,null,null,null,null,null,null,null,null,null,{"$f":"IF(入力用シート!R39=\"\",\"\",入力用シート!R39)","v":""},null,null,null,null,null,null,null,null,null,null,null,null,null,null,null,null,null,null,null,null,null,null,null,null,null,null,null,null,null,null,null,null,null,null,null,null,null,{"$f":"IF(入力用シート!BD39=\"\",\"\",入力用シート!BD39)","v":""},null,null,null,{"$f":"IF(入力用シート!BH39=\"\",\"\",入力用シート!BH39)","v":""},null,null,null,null,null,{"$f":"IF(入力用シート!BN39=\"\",\"\",入力用シート!BN39)","v":""},null,null,null,null,null,null,null,null,null,{"$f":"IF(入力用シート!BX39=\"\",\"\",入力用シート!BX39)","v":""}]
[null,{"$f":"IF(入力用シート!B40=\"\",\"\",入力用シート!B40)","v":""},null,null,null,null,{"$f":"IF(入力用シート!G40=\"\",\"\",入力用シート!G40)","v":""},null,null,null,null,null,null,null,null,null,null,{"$f":"IF(入力用シート!R40=\"\",\"\",入力用シート!R40)","v":""},null,null,null,null,null,null,null,null,null,null,null,null,null,null,null,null,null,null,null,null,null,null,null,null,null,null,null,null,null,null,null,null,null,null,null,null,null,{"$f":"IF(入力用シート!BD40=\"\",\"\",入力用シート!BD40)","v":""},null,null,null,{"$f":"IF(入力用シート!BH40=\"\",\"\",入力用シート!BH40)","v":""},null,null,null,null,null,{"$f":"IF(入力用シート!BN40=\"\",\"\",入力用シート!BN40)","v":""},null,null,null,null,null,null,null,null,null,{"$f":"IF(入力用シート!BX40=\"\",\"\",入力用シート!BX40)","v":""}]
[null,{"$f":"IF(入力用シート!B41=\"\",\"\",入力用シート!B41)","v":""},null,null,null,null,{"$f":"IF(入力用シート!G41=\"\",\"\",入力用シート!G41)","v":""},null,null,null,null,null,null,null,null,null,null,{"$f":"IF(入力用シート!R41=\"\",\"\",入力用シート!R41)","v":""},null,null,null,null,null,null,null,null,null,null,null,null,null,null,null,null,null,null,null,null,null,null,null,null,null,null,null,null,null,null,null,null,null,null,null,null,null,{"$f":"IF(入力用シート!BD41=\"\",\"\",入力用シート!BD41)","v":""},null,null,null,{"$f":"IF(入力用シート!BH41=\"\",\"\",入力用シート!BH41)","v":""},null,null,null,null,null,{"$f":"IF(入力用シート!BN41=\"\",\"\",入力用シート!BN41)","v":""},null,null,null,null,null,null,null,null,null,{"$f":"IF(入力用シート!BX41=\"\",\"\",入力用シート!BX41)","v":""}]
[null,{"$f":"IF(入力用シート!B42=\"\",\"\",入力用シート!B42)","v":""},null,null,null,null,{"$f":"IF(入力用シート!G42=\"\",\"\",入力用シート!G42)","v":""},null,null,null,null,null,null,null,null,null,null,{"$f":"IF(入力用シート!R42=\"\",\"\",入力用シート!R42)","v":""},null,null,null,null,null,null,null,null,null,null,null,null,null,null,null,null,null,null,null,null,null,null,null,null,null,null,null,null,null,null,null,null,null,null,null,null,null,{"$f":"IF(入力用シート!BD42=\"\",\"\",入力用シート!BD42)","v":""},null,null,null,{"$f":"IF(入力用シート!BH42=\"\",\"\",入力用シート!BH42)","v":""},null,null,null,null,null,{"$f":"IF(入力用シート!BN42=\"\",\"\",入力用シート!BN42)","v":""},null,null,null,null,null,null,null,null,null,{"$f":"IF(入力用シート!BX42=\"\",\"\",入力用シート!BX42)","v":""}]
[null,{"$f":"IF(入力用シート!B43=\"\",\"\",入力用シート!B43)","v":"「＊」は軽減税率対象品"},null,null,null,null,null,null,null,null,null,null,null,null,null,null,null,null,null,null,null,null,null,null,null,null,null,null,null,null,null,null,null,null,null,null,null,null,null,null,null,null,null,null,null,null,null,null,null,null,null,null,null,null,null,null,null,null,null,"合　計",null,null,null,null,null,{"$f":"IF(入力用シート!BN43=\"\",\"\",入力用シート!BN43)","v":""},null,null,null,null,null,null,null,null,null,{"$f":"IF(入力用シート!BX43=\"\",\"\",入力用シート!BX43)","v":""}]
[]
[null,"　訂正の場合は、代表者氏名欄に押してある代表者の印を使用"]
[null,"　軽減税率の商品については、品名の前に＊印をつけてください。"]
["△"]
[null,null,null,null,null,null,null,null,null,null,null,null,null,null,null,null,null,null,null,null,null,null,null,null,null,null,null,null,"購入伺・納品書"]
[null,null,null,null,null,null,null,null,null,null,null,null,null,null,null,null,null,null,null,null,null,null,null,null,null,null,null,null,null,null,null,null,null,null,null,null,null,null,null,null,null,null,null,null,null,null,null,null,null,null,null,null,null,null,null,null,null,null,null,null,null,null,null,null,null,null,null,null,null,null,null,null,null,null,null,null,null,null,"№",null,{"$f":"IF(CC3=\"\",\"\",CC3)","v":""}]
[]
[null,"　長 岡 赤 十 字 病 院　　　御 中",null,null,null,null,null,null,null,null,null,null,null,null,null,null,null,null,null,null,null,null,null,null,null,null,null,null,null,null,null,null,null,null,null,null,null,null,null,null,null,null,null,null,null,null,null,null,null,null,null,null,null,null,null,null,null,null,null,null,{"$f":"IF(BN73=\"\",\"\",IF(BN73>=1000000,\"院　　長\",\"\"))","v":""},null,null,null,null,"事務部長",null,null,null,null,"課　　長",null,null,null,null,"係　　長",null,null,null,null,"係"]
[]
[]
[]
[]
[null,{"$f":"IF(B10=\"\",\"\",B10)","v":""},null,null,null,{"$f":"IF(F10=\"\",\"\",F10)","v":""},null,null,null,{"$f":"IF(J10=\"\",\"\",J10)","v":""},null,null,null,"年",null,null,null,{"$f":"IF(R10=\"\",\"\",R10)","v":""},null,null,null,"月",null,null,null,{"$f":"IF(Z10=\"\",\"\",Z10)","v":""},null,null,null,"日",null,null,null,null,null,null,null,"納入",null,null,null,"住所",null,null,null,null,null,null,null,{"$f":"IF(AX10=\"\",\"\",AX10)","v":""}]
[null,null,null,null,null,null,null,null,null,null,null,null,null,null,null,null,null,null,null,null,null,null,null,null,null,null,null,null,null,null,null,null,null,null,null,null,null,null,null,null,null,"会社名"]
[null,null,null,null,null,null,null,null,null,null,null,null,null,null,null,null,null,null,null,null,null,null,null,null,null,null,null,null,null,null,null,null,null,null,null,null,null,null,null,null,null,"代表者氏名"]
[]
[null,null,null,null,null,null,null,null,null,null,null,null,null,null,null,null,null,null,null,null,null,null,null,null,null,null,null,null,null,null,null,null,null,null,null,null,null,null,null,null,null,{"$f":"IF(AP14=\"\",\"\",AP14)","v":""},null,{"$f":"IF(AR14=\"\",\"\",AR14)","v":""},null,{"$f":"IF(AT14=\"\",\"\",AT14)","v":""},null,{"$f":"IF(AV14=\"\",\"\",AV14)","v":""}]
[]
[]
[null,"品　目\nコード",null,null,null,null,"製 造 元",null,null,null,null,null,null,null,null,null,null,"品　　名　・　規　　格　・　製品コード",null,null,null,null,null,null,null,null,null,null,null,null,null,null,null,null,null,null,null,null,null,null,null,null,null,null,null,null,null,null,null,null,null,null,null,null,null,"数量",null,null,null,"単　価",null,null,null,null,null,"小　　計",null,null,null,null,null,null,null,null,null,"摘　　要\n（新規は定価）"]
[null,null,null,null,null,null,null,null,null,null,null,null,null,null,null,null,null,null,null,null,null,null,null,null,null,null,null,null,null,null,null,null,null,null,null,null,null,null,null,null,null,null,null,null,null,null,null,null,null,null,null,null,null,null,null,"（本箱袋）"]
[null,{"$f":"IF(B19=\"\",\"\",B19)","v":""},null,null,null,null,{"$f":"IF(G19=\"\",\"\",G19)","v":""},null,null,null,null,null,null,null,null,null,null,{"$f":"IF(R19=\"\",\"\",R19)","v":""},null,null,null,null,null,null,null,null,null,null,null,null,null,null,null,null,null,null,null,null,null,null,null,null,null,null,null,null,null,null,null,null,null,null,null,null,null,{"$f":"IF(BD19=\"\",\"\",BD19)","v":""},null,null,null,{"$f":"IF(BH19=\"\",\"\",BH19)","v":""},null,null,null,null,null,{"$f":"IF(BN19=\"\",\"\",BN19)","v":""},null,null,null,null,null,null,null,null,null,{"$f":"IF(BX19=\"\",\"\",BX19)","v":""},null,null,null,null,null,null,null,null,null,"査 収 印"]
[null,"",null,null,null,null,"",null,null,null,null,null,null,null,null,null,null,"",null,null,null,null,null,null,null,null,null,null,null,null,null,null,null,null,null,null,null,null,null,null,null,null,null,null,null,null,null,null,null,null,null,null,null,null,null,"",null,null,null,"",null,null,null,null,null,"",null,null,null,null,null,null,null,null,null,""]
[null,"",null,null,null,null,"",null,null,null,null,null,null,null,null,null,null,"",null,null,null,null,null,null,null,null,null,null,null,null,null,null,null,null,null,null,null,null,null,null,null,null,null,null,null,null,null,null,null,null,null,null,null,null,null,"",null,null,null,"",null,null,null,null,null,"",null,null,null,null,null,null,null,null,null,""]
[null,"",null,null,null,null,"",null,null,null,null,null,null,null,null,null,null,"",null,null,null,null,null,null,null,null,null,null,null,null,null,null,null,null,null,null,null,null,null,null,null,null,null,null,null,null,null,null,null,null,null,null,null,null,null,"",null,null,null,"",null,null,null,null,null,"",null,null,null,null,null,null,null,null,null,""]
[null,"",null,null,null,null,"",null,null,null,null,null,null,null,null,null,null,"",null,null,null,null,null,null,null,null,null,null,null,null,null,null,null,null,null,null,null,null,null,null,null,null,null,null,null,null,null,null,null,null,null,null,null,null,null,"",null,null,null,"",null,null,null,null,null,"",null,null,null,null,null,null,null,null,null,""]
[null,"",null,null,null,null,"",null,null,null,null,null,null,null,null,null,null,"",null,null,null,null,null,null,null,null,null,null,null,null,null,null,null,null,null,null,null,null,null,null,null,null,null,null,null,null,null,null,null,null,null,null,null,null,null,"",null,null,null,"",null,null,null,null,null,"",null,null,null,null,null,null,null,null,null,""]
[null,"",null,null,null,null,"",null,null,null,null,null,null,null,null,null,null,"",null,null,null,null,null,null,null,null,null,null,null,null,null,null,null,null,null,null,null,null,null,null,null,null,null,null,null,null,null,null,null,null,null,null,null,null,null,"",null,null,null,"",null,null,null,null,null,"",null,null,null,null,null,null,null,null,null,""]
[null,"",null,null,null,null,"",null,null,null,null,null,null,null,null,null,null,"",null,null,null,null,null,null,null,null,null,null,null,null,null,null,null,null,null,null,null,null,null,null,null,null,null,null,null,null,null,null,null,null,null,null,null,null,null,"",null,null,null,"",null,null,null,null,null,"",null,null,null,null,null,null,null,null,null,""]
[null,"",null,null,null,null,"",null,null,null,null,null,null,null,null,null,null,"",null,null,null,null,null,null,null,null,null,null,null,null,null,null,null,null,null,null,null,null,null,null,null,null,null,null,null,null,null,null,null,null,null,null,null,null,null,"",null,null,null,"",null,null,null,null,null,"",null,null,null,null,null,null,null,null,null,""]
[null,"",null,null,null,null,"",null,null,null,null,null,null,null,null,null,null,"",null,null,null,null,null,null,null,null,null,null,null,null,null,null,null,null,null,null,null,null,null,null,null,null,null,null,null,null,null,null,null,null,null,null,null,null,null,"",null,null,null,"",null,null,null,null,null,"",null,null,null,null,null,null,null,null,null,""]
[null,"",null,null,null,null,"",null,null,null,null,null,null,null,null,null,null,"",null,null,null,null,null,null,null,null,null,null,null,null,null,null,null,null,null,null,null,null,null,null,null,null,null,null,null,null,null,null,null,null,null,null,null,null,null,"",null,null,null,"",null,null,null,null,null,"",null,null,null,null,null,null,null,null,null,""]
[null,"",null,null,null,null,"",null,null,null,null,null,null,null,null,null,null,"",null,null,null,null,null,null,null,null,null,null,null,null,null,null,null,null,null,null,null,null,null,null,null,null,null,null,null,null,null,null,null,null,null,null,null,null,null,"",null,null,null,"",null,null,null,null,null,"",null,null,null,null,null,null,null,null,null,""]
[null,"",null,null,null,null,"",null,null,null,null,null,null,null,null,null,null,"",null,null,null,null,null,null,null,null,null,null,null,null,null,null,null,null,null,null,null,null,null,null,null,null,null,null,null,null,null,null,null,null,null,null,null,null,null,"",null,null,null,"",null,null,null,null,null,"",null,null,null,null,null,null,null,null,null,""]
[null,"",null,null,null,null,"",null,null,null,null,null,null,null,null,null,null,"",null,null,null,null,null,null,null,null,null,null,null,null,null,null,null,null,null,null,null,null,null,null,null,null,null,null,null,null,null,null,null,null,null,null,null,null,null,"",null,null,null,"",null,null,null,null,null,"",null,null,null,null,null,null,null,null,null,""]
[null,"",null,null,null,null,"",null,null,null,null,null,null,null,null,null,null,"",null,null,null,null,null,null,null,null,null,null,null,null,null,null,null,null,null,null,null,null,null,null,null,null,null,null,null,null,null,null,null,null,null,null,null,null,null,"",null,null,null,"",null,null,null,null,null,"",null,null,null,null,null,null,null,null,null,""]
[null,"",null,null,null,null,"",null,null,null,null,null,null,null,null,null,null,"",null,null,null,null,null,null,null,null,null,null,null,null,null,null,null,null,null,null,null,null,null,null,null,null,null,null,null,null,null,null,null,null,null,null,null,null,null,"",null,null,null,"",null,null,null,null,null,"",null,null,null,null,null,null,null,null,null,""]
[null,"「＊」は軽減税率対象品",null,null,null,null,null,null,null,null,null,null,null,null,null,null,null,null,null,null,null,null,null,null,null,null,null,null,null,null,null,null,null,null,null,null,null,null,null,null,null,null,null,null,null,null,null,null,null,null,null,null,null,null,null,null,null,null,null,"合　計",null,null,null,null,null,"",null,null,null,null,null,null,null,null,null,""]
[]
[]
[]
[null,null,null,null,null,null,null,null,null,null,null,null,null,null,null,null,null,null,null,null,null,null,null,null,null,null,null,null,"請求内訳明細書"]
[null,null,null,null,null,null,null,null,null,null,null,null,null,null,null,null,null,null,null,null,null,null,null,null,null,null,null,null,null,null,null,null,null,null,null,null,null,null,null,null,null,null,null,null,null,null,null,null,null,null,null,null,null,null,null,null,null,null,null,null,null,null,null,null,null,null,null,null,null,null,null,null,null,null,null,null,null,null,"№",null,{"$f":"IF(CC41=\"\",\"\",CC41)","v":""}]
[]
[null,"　長 岡 赤 十 字 病 院　　　御 中"]
[]
[]
[]
[]
[null,{"$f":"IF(B48=\"\",\"\",B48)","v":""},null,null,null,{"$f":"IF(F48=\"\",\"\",F48)","v":""},null,null,null,{"$f":"IF(J48=\"\",\"\",J48)","v":""},null,null,null,"年",null,null,null,{"$f":"IF(R48=\"\",\"\",R48)","v":""},null,null,null,"月",null,null,null,{"$f":"IF(Z48=\"\",\"\",Z48)","v":""},null,null,null,"日",null,null,null,null,null,null,null,"納入",null,null,null,"住所",null,null,null,null,null,null,null,{"$f":"IF(AX48=\"\",\"\",AX48)","v":""}]
[null,null,null,null,null,null,null,null,null,null,null,null,null,null,null,null,null,null,null,null,null,null,null,null,null,null,null,null,null,null,null,null,null,null,null,null,null,null,null,null,null,"会社名"]
[null,null,null,null,null,null,null,null,null,null,null,null,null,null,null,null,null,null,null,null,null,null,null,null,null,null,null,null,null,null,null,null,null,null,null,null,null,null,null,null,null,"代表者氏名"]
[]
[null,null,null,null,null,null,null,null,null,null,null,null,null,null,null,null,null,null,null,null,null,null,null,null,null,null,null,null,null,null,null,null,null,null,null,null,null,null,null,null,null,{"$f":"IF(AP52=\"\",\"\",AP52)","v":""},null,{"$f":"IF(AR52=\"\",\"\",AR52)","v":""},null,{"$f":"IF(AT52=\"\",\"\",AT52)","v":""},null,{"$f":"IF(AV52=\"\",\"\",AV52)","v":""}]
[]
[]
[null,"品　目\nコード",null,null,null,null,"製 造 元",null,null,null,null,null,null,null,null,null,null,"品　　名　・　規　　格　・　製品コード",null,null,null,null,null,null,null,null,null,null,null,null,null,null,null,null,null,null,null,null,null,null,null,null,null,null,null,null,null,null,null,null,null,null,null,null,null,"数量",null,null,null,"単　価",null,null,null,null,null,"小　　計",null,null,null,null,null,null,null,null,null,"摘　　要\n（新規は定価）"]
[null,null,null,null,null,null,null,null,null,null,null,null,null,null,null,null,null,null,null,null,null,null,null,null,null,null,null,null,null,null,null,null,null,null,null,null,null,null,null,null,null,null,null,null,null,null,null,null,null,null,null,null,null,null,null,"（本箱袋）"]
[null,{"$f":"IF(B57=\"\",\"\",B57)","v":""},null,null,null,null,{"$f":"IF(G57=\"\",\"\",G57)","v":""},null,null,null,null,null,null,null,null,null,null,{"$f":"IF(R57=\"\",\"\",R57)","v":""},null,null,null,null,null,null,null,null,null,null,null,null,null,null,null,null,null,null,null,null,null,null,null,null,null,null,null,null,null,null,null,null,null,null,null,null,null,{"$f":"IF(BD57=\"\",\"\",BD57)","v":""},null,null,null,{"$f":"IF(BH57=\"\",\"\",BH57)","v":""},null,null,null,null,null,{"$f":"IF(BN57=\"\",\"\",BN57)","v":""},null,null,null,null,null,null,null,null,null,{"$f":"IF(BX57=\"\",\"\",BX57)","v":""},null,null,null,null,null,null,null,null,null,"現品受領",null,"購入伺照合済"]
[null,{"$f":"IF(B58=\"\",\"\",B58)","v":""},null,null,null,null,{"$f":"IF(G58=\"\",\"\",G58)","v":""},null,null,null,null,null,null,null,null,null,null,{"$f":"IF(R58=\"\",\"\",R58)","v":""},null,null,null,null,null,null,null,null,null,null,null,null,null,null,null,null,null,null,null,null,null,null,null,null,null,null,null,null,null,null,null,null,null,null,null,null,null,{"$f":"IF(BD58=\"\",\"\",BD58)","v":""},null,null,null,{"$f":"IF(BH58=\"\",\"\",BH58)","v":""},null,null,null,null,null,"",null,null,null,null,null,null,null,null,null,{"$f":"IF(BX58=\"\",\"\",BX58)","v":""}]
[null,"",null,null,null,null,"",null,null,null,null,null,null,null,null,null,null,"",null,null,null,null,null,null,null,null,null,null,null,null,null,null,null,null,null,null,null,null,null,null,null,null,null,null,null,null,null,null,null,null,null,null,null,null,null,"",null,null,null,"",null,null,null,null,null,"",null,null,null,null,null,null,null,null,null,""]
[null,"",null,null,null,null,"",null,null,null,null,null,null,null,null,null,null,"",null,null,null,null,null,null,null,null,null,null,null,null,null,null,null,null,null,null,null,null,null,null,null,null,null,null,null,null,null,null,null,null,null,null,null,null,null,"",null,null,null,"",null,null,null,null,null,"",null,null,null,null,null,null,null,null,null,""]
[null,"",null,null,null,null,"",null,null,null,null,null,null,null,null,null,null,"",null,null,null,null,null,null,null,null,null,null,null,null,null,null,null,null,null,null,null,null,null,null,null,null,null,null,null,null,null,null,null,null,null,null,null,null,null,"",null,null,null,"",null,null,null,null,null,"",null,null,null,null,null,null,null,null,null,""]
[null,"",null,null,null,null,"",null,null,null,null,null,null,null,null,null,null,"",null,null,null,null,null,null,null,null,null,null,null,null,null,null,null,null,null,null,null,null,null,null,null,null,null,null,null,null,null,null,null,null,null,null,null,null,null,"",null,null,null,"",null,null,null,null,null,"",null,null,null,null,null,null,null,null,null,""]
[null,"",null,null,null,null,"",null,null,null,null,null,null,null,null,null,null,"",null,null,null,null,null,null,null,null,null,null,null,null,null,null,null,null,null,null,null,null,null,null,null,null,null,null,null,null,null,null,null,null,null,null,null,null,null,"",null,null,null,"",null,null,null,null,null,"",null,null,null,null,null,null,null,null,null,""]
[null,"",null,null,null,null,"",null,null,null,null,null,null,null,null,null,null,"",null,null,null,null,null,null,null,null,null,null,null,null,null,null,null,null,null,null,null,null,null,null,null,null,null,null,null,null,null,null,null,null,null,null,null,null,null,"",null,null,null,"",null,null,null,null,null,"",null,null,null,null,null,null,null,null,null,""]
[null,"",null,null,null,null,"",null,null,null,null,null,null,null,null,null,null,"",null,null,null,null,null,null,null,null,null,null,null,null,null,null,null,null,null,null,null,null,null,null,null,null,null,null,null,null,null,null,null,null,null,null,null,null,null,"",null,null,null,"",null,null,null,null,null,"",null,null,null,null,null,null,null,null,null,""]
[null,"",null,null,null,null,"",null,null,null,null,null,null,null,null,null,null,"",null,null,null,null,null,null,null,null,null,null,null,null,null,null,null,null,null,null,null,null,null,null,null,null,null,null,null,null,null,null,null,null,null,null,null,null,null,"",null,null,null,"",null,null,null,null,null,"",null,null,null,null,null,null,null,null,null,""]
[null,"",null,null,null,null,"",null,null,null,null,null,null,null,null,null,null,"",null,null,null,null,null,null,null,null,null,null,null,null,null,null,null,null,null,null,null,null,null,null,null,null,null,null,null,null,null,null,null,null,null,null,null,null,null,"",null,null,null,"",null,null,null,null,null,"",null,null,null,null,null,null,null,null,null,""]
[null,"",null,null,null,null,"",null,null,null,null,null,null,null,null,null,null,"",null,null,null,null,null,null,null,null,null,null,null,null,null,null,null,null,null,null,null,null,null,null,null,null,null,null,null,null,null,null,null,null,null,null,null,null,null,"",null,null,null,"",null,null,null,null,null,"",null,null,null,null,null,null,null,null,null,""]
[null,"",null,null,null,null,"",null,null,null,null,null,null,null,null,null,null,"",null,null,null,null,null,null,null,null,null,null,null,null,null,null,null,null,null,null,null,null,null,null,null,null,null,null,null,null,null,null,null,null,null,null,null,null,null,"",null,null,null,"",null,null,null,null,null,"",null,null,null,null,null,null,null,null,null,""]
[null,"",null,null,null,null,"",null,null,null,null,null,null,null,null,null,null,"",null,null,null,null,null,null,null,null,null,null,null,null,null,null,null,null,null,null,null,null,null,null,null,null,null,null,null,null,null,null,null,null,null,null,null,null,null,"",null,null,null,"",null,null,null,null,null,"",null,null,null,null,null,null,null,null,null,""]
[null,"",null,null,null,null,"",null,null,null,null,null,null,null,null,null,null,"",null,null,null,null,null,null,null,null,null,null,null,null,null,null,null,null,null,null,null,null,null,null,null,null,null,null,null,null,null,null,null,null,null,null,null,null,null,"",null,null,null,"",null,null,null,null,null,"",null,null,null,null,null,null,null,null,null,""]
[null,"",null,null,null,null,"",null,null,null,null,null,null,null,null,null,null,"",null,null,null,null,null,null,null,null,null,null,null,null,null,null,null,null,null,null,null,null,null,null,null,null,null,null,null,null,null,null,null,null,null,null,null,null,null,"",null,null,null,"",null,null,null,null,null,"",null,null,null,null,null,null,null,null,null,""]
[null,{"$f":"IF(B73=\"\",\"\",B73)","v":"「＊」は軽減税率対象品"},null,null,null,null,null,null,null,null,null,null,null,null,null,null,null,null,null,null,null,null,null,null,null,null,null,null,null,null,null,null,null,null,null,null,null,null,null,null,null,null,null,null,null,null,null,null,null,null,null,null,null,null,null,null,null,null,null,"合　計",null,null,null,null,null,{"$f":"IF(BN73=\"\",\"\",BN73)","v":""},null,null,null,null,null,null,null,null,null,""]